Cogmind - Beta 14 @@@ ROGUE MODE // 2024.11.06 @ 09:40:09 Player: RB21 Result: Destroyed by D-53 Grenadier with Mini Grenade Launcher Performance ------------- Evolutions (0) 0 Regions Visited (4) 800 Robots Destroyed (12) 60 Value Destroyed (247) 247 Prototype IDs (0) 0 Alien Tech Used (0) 0 Bonus (300) 300 TOTAL SCORE: 1407 Bonus ------- Aligned with FarCom 300 Cogmind --------- Core Integrity 0/250 Matter 171/300 Energy 95/100 System Corruption 0% Temperature Cool (0) Movement Core (400) Ox7 Location -9/Mines Parts ------- > --- POWER (1) -------- (None) > --- PROPULSION (2) --- (None) > --- UTILITY (2) ------ Large Storage Unit Power Shielding > --- WEAPON (2) ------- Grenade Launcher > --- INVENTORY (15) --- Ion Engine Ion Engine Light Ion Engine High-capacity Battery (250) EM Pulse Gun Light Assault Rifle Peak State ------------ > --- POWER ------------ Light Ion Engine > --- PROPULSION ------- Light Treads Light Treads > --- UTILITY ---------- Large Storage Unit Power Shielding > --- WEAPON ----------- Slug Cannon Rocket Launcher > --- INVENTORY -------- Ion Engine Ion Engine Light Ion Engine High-capacity Battery EM Pulse Gun Medium Laser Light Assault Rifle Grenade Launcher [Rating: 11] Favorites ----------- Power Light Ion Engine Engine Light Ion Engine Propulsion Light Treads Treads Light Treads Utility Power Shielding Storage Small Storage Unit Protection Power Shielding Weapon Light Assault Rifle Energy Gun Medium Laser Ballistic Gun Light Assault Rifle Ballistic Cannon Slug Cannon Launcher Grenade Launcher Build | -11 -10 -10 -10 -9 ------- Run | Yrd Mat Min Exi Min Slots Evolved . | . . . . . Power . | . . . . . Propulsion . | . . . . . Utility . | . . . . . Weapon . | . . . . . Parts Attached 20 | 6 1 2 4 7 Power 2 | 1 . . 1 . Engine 2 | 1 . . 1 . Core . | . . . . . Reactor . | . . . . . Propulsion 2 | 2 . . . . Treads 2 | 2 . . . . Leg . | . . . . . Wheel . | . . . . . Hover . | . . . . . Flight . | . . . . . Utility 3 | 1 1 . 1 . Device . | . . . . . Storage 2 | 1 . . 1 . Processor . | . . . . . Hackware . | . . . . . Protection 1 | . 1 . . . Artifact . | . . . . . Weapon 13 | 2 . 2 2 7 Energy Gun 5 | 2 . . 2 1 Energy Cannon . | . . . . . Ballistic Gun 2 | . . 1 . 1 Ballistic Cannon 2 | . . . . 2 Launcher 4 | . . 1 . 3 Special Weapon . | . . . . . Impact Weapon . | . . . . . Slashing Weapon . | . . . . . Piercing Weapon . | . . . . . Special Melee Weapon . | . . . . . Unidentified Prototypes . | . . . . . Parts Lost 6 | . . . . 6 Power 1 | . . . . 1 Propulsion 2 | . . . . 2 Utility . | . . . . . Weapon 3 | . . . . 3 Highest Loss Streak 6 | . . . . 6 To Critical Strikes . | . . . . . Average Slot Usage (%) 98 | . 89 100 99 96 Engine 13 | . 14 14 14 13 Treads 27 | . 28 28 28 26 Storage 14 | . 14 14 14 14 Protection 12 | . 3 14 14 14 Energy Gun 15 | . 28 14 13 12 Ballistic Gun 12 | . . 13 14 12 Peak Build Rating 11 | 6 7 8 8 11 Average Rating 7 | 4 6 7 7 8 On Entrance 5 | . 6 7 8 8 Naked Turns . | . . . . . Heaviest Build 35 | 12 13 13 27 35 Greatest Support 40 | 40 40 40 40 40 Greatest Overweight (x) . | . . . . . Average Overweight (x) . | . . . . . Largest Inventory Capacity 15 | 8 8 8 15 15 Average Capacity 11 | 7 8 8 13 15 Most Carried 8 | 4 6 8 8 8 Average Carried 7 | 1 3 7 7 7 Final Capacity 15 | 8 8 8 15 15 Final Carried 8 | 2 6 8 8 6 Class Distribution -------------------- 100% | Mutant Dominant Class ---------------- Mutant | -10/Materials Mutant | -10/Mines Mutant | -10/Exiles Mutant | -9/Mines Resources | -11 -10 -10 -10 -9 ----------- Run | Yrd Mat Min Exi Min Matter Collected 387 | 126 123 71 40 27 Remotely . | . . . . . Salvage Created 341 | . 123 164 . 54 Parts 27 | . 13 12 . 2 Haulers Intercepted . | . . . . . Recyclers Shooed . | . . . . . Parts Field Recycled . | . . . . . Retrieved Matter . | . . . . . Parts Self-Destructed . | . . . . . Prevented . | . . . . . Kills | -11 -10 -10 -10 -9 ------- Run | Yrd Mat Min Exi Min Combat Hostiles Destroyed 12 | . 2 7 . 3 Guns 7 | . 2 5 . . Cannons 1 | . . . . 1 AOE 4 | . . 2 . 2 Classes Destroyed 5 | . 2 1 . 2 Recycler 1 | . . . . 1 Watcher 2 | . 2 . . . Swarmer 5 | . . 5 . . Grunt 4 | . 2 2 . . Assembled 3 | . . . . 3 Best Kill Streak 4 | . 4 3 . 3 Combat Bots Only 3 | . 2 3 . 3 Max Kills in Single Turn 2 | . 1 2 . 2 Gunslinging 1 | . . 1 . . Exploded 2 | . . 2 . 2 Melee . | . . . . . Uniques/NPCs Destroyed . | . . . . . Combat | -11 -10 -10 -10 -9 -------- Run | Yrd Mat Min Exi Min Hostile Shots Fired 91 | . 29 21 . 41 Missed 19 | . 6 4 . 9 Damage Taken 1179 | . 228 164 . 787 Core 254 | . 19 9 . 226 Absorbed by Shields . | . . . . . Redirected to Shielding 26 | . 3 9 . 14 Core Remaining (%) 100 | 100 . . . . Volleys Fired 37 | . 9 12 . 16 Largest 2 | . 2 2 . 2 Hottest 98 | . 90 70 . 98 Shots Fired 67 | . 18 24 . 25 Gun 48 | . 18 22 . 8 Cannon 14 | . . . . 14 Launcher 5 | . . 2 . 3 Special . | . . . . . Kinetic 24 | . . 10 . 14 Thermal 17 | . 9 . . 8 Explosive 5 | . . 2 . 3 Electromagnetic 21 | . 9 12 . . Robot Hit Streak 4 | . 3 4 . 3 Robot Miss Streak 4 | . 2 2 . 4 Penetration Max . | . . . . . Secondary Targets 2 | . 1 1 . . Max Gunslinging Chain 1 | . 1 1 . . Shots Hit Robots 30 | . 10 13 . 7 Core Hits 23 | . 6 7 . 10 Critical Kills . | . . . . . Critical Parts Destroyed . | . . . . . Critical Strikes 2 | . 1 1 . . Corrupt 2 | . 1 1 . . Melee Attacks . | . . . . . Impact . | . . . . . Slashing . | . . . . . Piercing . | . . . . . Sneak Attacks . | . . . . . Combat Hostiles . | . . . . . Follow-up Attacks . | . . . . . Damage Inflicted 654 | . 142 268 . 244 Guns 294 | . 142 128 . 24 Cannons 79 | . . . . 79 Explosions 271 | . . 132 . 139 Melee . | . . . . . Ramming 10 | . . 8 . 2 Kinetic 117 | . . 38 . 79 Thermal 178 | . 76 78 . 24 Explosive 193 | . . 54 . 139 Electromagnetic 156 | . 66 90 . . Impact . | . . . . . Slashing . | . . . . . Piercing . | . . . . . Highest Corruption . | . . . . . Average Corruption . | . . . . . Corruption Purged . | . . . . . Corruption Blocked . | . . . . . Overload Shots . | . . . . . Overflow Damage 7 | . . . . 7 Projectiles 7 | . . . . 7 Explosions . | . . . . . Melee . | . . . . . Knockbacks . | . . . . . Impact . | . . . . . Kinetic . | . . . . . Secondary . | . . . . . Self-Inflicted Damage 12 | . . . . 12 Shots 1 | . . . . 1 Rammed 2 | . . 2 . . Targets Rammed 3 | . . 2 . 1 Kicked . | . . . . . Crushed 1 | . . . . 1 Highest Temperature 342 | . 342 40 . 215 Average Temperature 110 | . 174 17 . 114 Received Heat Transfer 114 | . 84 30 . . Siege Activations . | . . . . . Robots Corrupted . | . . . . . Combat Hostiles . | . . . . . Parts Fried 2 | . 2 . . . Impact Corruptions . | . . . . . Robots Melted . | . . . . . Combat Hostiles . | . . . . . Parts Melted . | . . . . . Heat Transferred 346 | . 222 50 . 74 Parts Sabotaged . | . . . . . Parts Stolen . | . . . . . Parts Stripped . | . . . . . Power Chain Reactions 1 | . . 1 . . Alert | -11 -10 -10 -10 -9 ------- Run | Yrd Mat Min Exi Min Peak Influence 154 | . 71 154 . 31 Initial 27 | . . 27 . . Average 41 | . 20 67 . 8 Maximum Alert Level . | . . . . . Low Security (%) 100 | 100 100 100 . 100 Level 1 . | . . . . . Level 2 . | . . . . . Level 3 . | . . . . . Level 4 . | . . . . . Level 5 . | . . . . . High Security . | . . . . . Max Security . | . . . . . Squads Dispatched 1 | . 1 . . . Investigation 1 | . 1 . . . Extermination . | . . . . . Reinforcement . | . . . . . Assault . | . . . . . Garrison . | . . . . . Intercept . | . . . . . Searches Triggered . | . . . . . Construction Impeded . | . . . . . Haulers Reinforced . | . . . . . Active Scanning Responses . | . . . . . Cargo Convoy Interrupts . | . . . . . Stealth | -11 -10 -10 -10 -9 --------- Run | Yrd Mat Min Exi Min Distress Signals 3 | . 2 . . 1 Communications Jammed . | . . . . . Distress Signals . | . . . . . Times Spotted 24 | . 8 8 . 8 Peak Tracking Total 8 | . 4 3 . 8 Tactical Retreats 3 | . . 2 . 1 Traps | -11 -10 -10 -10 -9 ------- Run | Yrd Mat Min Exi Min Traps Triggered . | . . . . . Indirectly . | . . . . . Trap Hack Attempts . | . . . . . Triggered . | . . . . . Disarmed . | . . . . . Reprogrammed . | . . . . . Reused . | . . . . . Traps Extracted . | . . . . . Installed . | . . . . . Triggered . | . . . . . Machines | -11 -10 -10 -10 -9 ---------- Run | Yrd Mat Min Exi Min Machines Disabled 1 | . . 1 . . Max in Single Turn 1 | . . 1 . . Machines Repaired . | . . . . . Machines Dismantled . | . . . . . Machines Sabotaged . | . . . . . Overloaded Fab Kills . | . . . . . Hacking | -11 -10 -10 -10 -9 --------- Run | Yrd Mat Min Exi Min Machines Accessed 5 | . 4 . 1 . Terminals 4 | . 4 . . . Fabricators . | . . . . . Repair Stations . | . . . . . Recycling Units . | . . . . . Scanalyzers . | . . . . . Garrison Access . | . . . . . Total Hacks 13 | . 10 . 3 . Successful 4 | . 1 . 3 . Failed 9 | . 9 . . . Catastrophic 3 | . 3 . . . Database Lockouts . | . . . . . Manual 4 | . 4 . . . Terminals 10 | . 10 . . . Fabricators . | . . . . . Repair Stations . | . . . . . Recycling Units . | . . . . . Scanalyzers . | . . . . . Garrison Access . | . . . . . Terminal Hacks 4 | . 1 . 3 . Record 3 | . . . 3 . Registered Components 1 | . 1 . . . Fabricator Hacks . | . . . . . Repair Station Hacks . | . . . . . Recycling Unit Hacks . | . . . . . Scanalyzer . | . . . . . Garrison Access Hacks . | . . . . . Unauthorized Hacks . | . . . . . Terminals . | . . . . . Fabricators . | . . . . . Repair Stations . | . . . . . Recycling Units . | . . . . . Scanalyzers . | . . . . . Garrison Access . | . . . . . Data Cores Recovered . | . . . . . Used . | . . . . . Hacking Detections 4 | . 4 . . . Full Trace Events 3 | . 3 . . . Feedback Events . | . . . . . Feedback Blocked . | . . . . . Robot Schematics Acquired . | . . . . . Robots Built . | . . . . . Authchips . | . . . . . Time . | . . . . . Total Robot Build Rating . | . . . . . Part Schematics Acquired . | . . . . . Parts Built . | . . . . . Authchips . | . . . . . Time . | . . . . . Total Part Build Rating . | . . . . . Parts Repaired . | . . . . . Time . | . . . . . Parts Recycled . | . . . . . Recycled Matter . | . . . . . Retrieved Matter . | . . . . . Retrieved Components . | . . . . . Parts Scanalyzed . | . . . . . Part Schematics Acquired . | . . . . . Parts Damaged . | . . . . . Bothacking | -11 -10 -10 -10 -9 ------------ Run | Yrd Mat Min Exi Min Used RIF Installer . | . . . . . Robots Hacked . | . . . . . Non-combat . | . . . . . Combat . | . . . . . Robot Hacks Applied . | . . . . . Relay Couplers Released . | . . . . . Fabnet Peak Effective % . | . . . . . Robots Rewired . | . . . . . Allies Hacked . | . . . . . Hacks Repelled . | . . . . . Allies | -11 -10 -10 -10 -9 -------- Run | Yrd Mat Min Exi Min Total Allies . | . . . . . Largest Group . | . . . . . Highest-Rated Group . | . . . . . Highest-Rated Ally . | . . . . . Total Orders . | . . . . . Ally Attacks . | . . . . . Total Damage . | . . . . . Kills . | . . . . . Allies Corrupted . | . . . . . Allies Melted . | . . . . . Intel | -11 -10 -10 -10 -9 ------- Run | Yrd Mat Min Exi Min Robot Analysis Total . | . . . . . Derelict Logs Recovered 1 | . . . . 1 Drone Launches . | . . . . . Drone Recoveries . | . . . . . Exploration | -11 -10 -10 -10 -9 ------------- Run | Yrd Mat Min Exi Min Turns Passed 2845 | 68 320 833 1246 378 Spaces Moved 1685 | 42 180 490 770 203 Core 10 | 10 . . . . Treads 1675 | 32 180 490 770 203 Legs . | . . . . . Wheels . | . . . . . Hover . | . . . . . Flight . | . . . . . Fastest Speed 50 | 50 160 160 160 160 Average Speed 159 | 133 160 160 160 160 Slowest Speed 160 | 160 160 160 160 160 Overloaded Moves . | . . . . . Propulsion Burnouts . | . . . . . Robots Hopped . | . . . . . Cave-ins Triggered . | . . . . . Exploration Rate (%) 50 | 3 35 77 92 47 Regions Visited 4 Branch Regions 3 Pre-discovered Areas 2 | . . 1 1 . Known Exits Taken . | . . . . . Unknown Exits Taken 4 | 1 1 1 1 . Scrap Searched 1 | . . 1 . . Spaces Dug . | . . . . . Terrain Destroyed 26 | . . 12 . 14 Melee . | . . . . . Projectile 6 | . . . . 6 AOE 20 | . . 12 . 8 Terrain Rammed . | . . . . . Walls Destroyed . | . . . . . Machines Disabled . | . . . . . Actions | -11 -10 -10 -10 -9 --------- Run | Yrd Mat Min Exi Min Total 1776 | 53 194 517 784 228 Wait 9 | . . 2 6 1 Move 1681 | 41 179 489 769 203 Hop . | . . . . . Pick Up 18 | 6 5 6 1 . Fast Attach 3 | 2 . . 1 . Attach 7 | 4 1 . . 2 Detach . | . . . . . Swap 10 | . . 2 3 5 Drop 7 | . . 4 3 . Fire 37 | . 9 12 . 16 Melee . | . . . . . Ram . | . . . . . Kick . | . . . . . Crush 3 | . . 2 . 1 Escape Stasis . | . . . . . Rewire 1 | . . . 1 . Trap . | . . . . . Miscellaneous . | . . . . . Route ------- -11/Scrapyard -10/Materials -10/Mines (discovered 3 exits: [*Mat x2] / *Exi) -10/Exiles (discovered 2 exits: [*Min x2]) -9/Mines History --------- Turn | Location | Event 29 | -11/Scrapyard | Discovered new exit (range 15) 69 | -11/Scrapyard | Entered Materials 251 | -10/Materials | Discovered new exit (range 6) 318 | -10/Materials | Build established: Mutant 389 | -10/Materials | Entered Mines 454 | -10/Mines | Discovered new exit (range 15) 544 | -10/Mines | A weapon hastily lodged in a ceiling crevice suddenly fell to the ground 883 | -10/Mines | Learned location of Storage (-7) 1032 | -10/Mines | Discovered new exit (range 7) 1037 | -10/Mines | Received a Rocket Launcher from a helpful Derelict 1214 | -10/Mines | Deemed a non-threat by the Exiles lab entrance 1216 | -10/Mines | Discovered new exit (range 5) 1222 | -10/Mines | Entered Exiles 1272 | -10/Exiles | Met 8R-AWN 1313 | -10/Exiles | Met EX-HEX 1396 | -10/Exiles | Met EX-DEC 1439 | -10/Exiles | Learned location of Zion (-7) 1573 | -10/Exiles | Discovered new exit (range 14) 1676 | -10/Exiles | Met EX-BIN 1701 | -10/Exiles | Aligned with FarCom system 1703 | -10/Exiles | Given EX-Vault access code 2080 | -10/Exiles | Visited The Gauntlet 2373 | -10/Exiles | Discovered new exit (range 15) 2468 | -10/Exiles | Entered Mines 2474 | -9/Mines | Met a Derelict bent on vengeance 2505 | -9/Mines | Learned location of 1 exit from Materials 2682 | -9/Mines | Assembled infested the area 2838 | -9/Mines | Core integrity fell below 50% 2843 | -9/Mines | Core integrity fell below 20% 2846 | -9/Mines | Destroyed by D-53 Grenadier with Mini Grenade Launcher Last Messages --------------- Rocket Launcher destroyed. U-05 Engineer lays Concrete. K-01 Serf collects debris. U-05 Engineer lays Concrete. Lgt. Ion Engine destroyed. U-05 Engineer lays Concrete. U-05 Engineer builds a Wall. The unstable cave ceiling collapses. K-01 Serf collects debris. The unstable cave ceiling collapses. U-05 Engineer builds a Wall. The unstable cave ceiling collapses. U-05 Engineer lays Concrete. Destroyed Shock Absorption System. U-05 Engineer builds a Wall. U-05 Engineer lays Concrete. Slug Cannon destroyed. The unstable cave ceiling collapses. U-05 Engineer lays Concrete. The unstable cave ceiling collapses. Map ----- +----------------------------------------------------+ | ??????????????????????# #?# ##???# ## | | ??????????????????????# ## ##?# #???## #? | | ??????????????????????# ####* #### #????# ? | | ??????????????????????# ####==%%!% ##????## | | ??????????????????????# ## [#### #??????? | | ??????????????????????### ## #??# #??????# | | ??????????????# #### ## #??# #??????## | | ??????????????# #??# #??????? | | ???????????????# ######## ##??# """ #?????? | | ???????????????????????????# #???# """ #?????? | | ????????????????????###????# #??? """ #????? | | ?????????????????#### ##??# #??? ##????? | | ????????????????## #?#%##?# ####?????? | | ???????????????## ### ### ##???????? | | ???????????????# u #???????? | | ??????????????# % % % #???????? | | ?????????????? ##=% r #??????? | | ??????????????????????## %[ ?????? | | ???????????????????????#kk dd ??? $?????? | | ??????????????????????## ##??????#??????? | | ?????????????????????## k #?????????????? | | ?????????????????????# #?????????????? | | ????????????????????## ##????????????? | | ????????????????????# ##???????????? | | ????????????????????# * ????????? | | ????????????????????# @ r %= ????????? | | ????????????????????# #######?????????? | | ????????????????###?## # ##???????????????? | | ????????????????#"#### # ##????????????????? | | ????####????????#" ### # ####?????????????????? | | ????# ######### ## ####????????????????????? | | ????# ## # #?????????????????????? | | ????# ## #?????????????????????? | | ?????####### * = #?????????????????????? | | ???????????# # #?????????????????????? | | ???????????# ####### ##????????????????????? | | ???????????# #?????### ##???????????????????? | | ???????????# #???????# ##??????????????????? | | ??????????? ???????# ##?????????????????? | | ???????????"""???????#### #?????????????????? | | ?????????? """??????????## #?????????????????? | | ?????????? """???????????## ##?????????????????? | | ?????????? ????????????# #??????????????????? | | ????????? ???????????????# #??????????????????? | | ????????? ????????????????# #??????????????????? | | ??????????????????????????## ##??????????????????? | | ???????????????????????????###???????????????????? | | ?????????????????????????????????????????????????? | | ?????????????????????????????????????????????????? | | ?????????????????????????????????????????????????? | +----------------------------------------------------+ Best States ------------- Heat Dissipation 25 Energy Generation 10 Energy Capacity 125 Matter Stores 300 Matter Capacity 300 Sight Range 16 Terrain Scan Density 10 Power Shielding 33 Evasion (%) 50 Recoil Reduction 2 Item Schematics ----------------- None Robot Schematics ------------------ None Fabricated ------------ Nothing Alien Tech Used ----------------- None Achievements -------------- None Challenges ------------ None Game ------ Seed NovaBombardmentExpander Manual? 0 Play Time 00:19:13 Cumulative 10.3 hours Start 2024.11.05 @ 14:08:23 End 2024.11.06 @ 09:40:09 Sessions 3 Manual Loads 0 Difficulty Rogue Special Mode None Game No. 16 Rogue 16 Adventurer 0 Explorer 0 Win Type - Total 0 Types 0/0/0/0/0/0/0/0/0 Lore% 8 Gallery% 13 Achievement% 14 Wizard Run 0 Options --------- Layout 1 ASCII 0 Keyboard 1 Movement Numpad Keybinds 0 Fullscreen 1 Font 24/Smallcaps Map View 50x35 Zoom Use 0% Tactical HUD 0 Map Filters NONE Filters NONE Steam X RUN: 0874a208-75cb-4a4e-8613-6f429d129966